fUSD/lending_fUSD_20240508
["ID","MTS","AMOUNT","RATE_DAILY","PERIOD"]
[326618105,1715149867335,-500.0,0.00020177,2]
[326618106,1715149867344,-500.0,0.00020177,2]
[326618107,1715149867354,-500.0,0.00020177,2]
[326618108,1715149867364,-500.0,0.00020177,2]
[326618109,1715149867374,-500.0,0.00020177,2]
[326618110,1715149867389,-500.0,0.00020177,2]
[326618111,1715149867398,-500.0,0.00020177,2]
[326618112,1715149867408,-500.0,0.00020177,2]
[326618113,1715149867417,-500.0,0.00020177,2]
[326618114,1715149867427,-500.0,0.00020177,2]
[326618115,1715149867436,-500.0,0.00020177,2]
[326618116,1715149867446,-500.0,0.00020177,2]
[326618117,1715149867456,-500.0,0.00020177,2]
[326618118,1715149867466,-500.0,0.00020177,2]
[326618119,1715149867475,-500.0,0.00020177,2]
[326618120,1715149867484,-500.0,0.00020177,2]
[326618121,1715149867495,-500.0,0.00020177,2]
[326618122,1715149867505,-500.0,0.00020177,2]
[326618123,1715149867514,-500.0,0.00020177,2]
[326618124,1715149867524,-500.0,0.00020177,2]
[326618125,1715149867533,-500.0,0.00020177,2]
[326618126,1715149867542,-500.0,0.00020177,2]
[326618127,1715149867552,-163.99430133,0.00020207,2]
[326618128,1715149867562,-573.73,0.00020273,2]
[326618129,1715149867571,-627.26025714,0.00020273,2]
[326618130,1715149867581,-500.0,0.00020273,2]
[326618131,1715149867590,-500.0,0.00020273,2]
[326618132,1715149867599,-151.0,0.00020273,2]
[326618133,1715149867608,-500.0,0.00020273,2]
[326618134,1715149867618,-397.90682028,0.00020273,2]
[326618135,1715149867630,-500.0,0.00020273,2]
[326618136,1715149867641,-315.79244022,0.00020273,2]
[326618137,1715149867650,-417.24723205,0.00020273,2]
[326618138,1715149867660,-500.0,0.00020273,2]
[326618139,1715149867669,-500.0,0.00020273,2]
[326618140,1715149867679,-500.0,0.00020273,2]
[326618141,1715149867687,-274.16673621,0.00020273,2]
[326618142,1715149867696,-500.0,0.00020273,2]
[326618143,1715149867706,-500.0,0.00020273,2]
[326618144,1715149867716,-151.0,0.00020273,2]
[326618145,1715149867725,-500.0,0.00020273,2]
[326618146,1715149867734,-500.0,0.00020273,2]
[326618147,1715149867743,-500.0,0.00020273,2]
[326618148,1715149867753,-500.0,0.00020273,2]
[326618149,1715149867762,-441.7,0.00020273,2]
[326618150,1715149867772,-236.64,0.00020273,2]
[326618151,1715149867782,-500.0,0.00020273,2]
[326618152,1715149867791,-500.0,0.00020273,2]
[326618153,1715149867801,-151.0,0.00020273,2]
[326618154,1715149867810,-391.19106003,0.00020273,2]
[326618155,1715149867820,-600.31925074,0.00020273,2]
[326618156,1715149867831,-500.0,0.00020273,2]
[326618157,1715149867841,-500.0,0.00020273,2]
[326618158,1715149867850,-291.731569,0.00020273,2]
[326618159,1715149867860,-403.77714077,0.00020273,2]
[326618160,1715149867869,-500.0,0.00020273,2]
[326618161,1715149867882,-291.731569,0.00020273,2]
[326618162,1715149867891,-500.0,0.00020273,2]
[326618163,1715149867900,-500.0,0.00020273,2]
[326618164,1715149867909,-500.0,0.00020273,2]
[326618165,1715149867919,-638.37311894,0.00020273,2]
[326618166,1715149867928,-284.28017507,0.00020273,2]
[326618167,1715149867938,-151.0,0.00020273,2]
[326618168,1715149867948,-152.6360394,0.00020273,2]
[326618169,1715149867958,-151.0,0.00020273,2]
[326618170,1715149867967,-500.0,0.00020273,2]
[326618171,1715149867976,-586.79,0.00020273,2]
[326618172,1715149867985,-500.0,0.00020273,2]
[326618173,1715149867995,-500.0,0.00020273,2]
[326618174,1715149868004,-500.0,0.00020273,2]
[326618175,1715149868012,-207.25469939,0.00020273,2]
[326618176,1715149868022,-150.0,0.00020273,2]
[326618177,1715149868032,-500.0,0.00020273,2]
[326618178,1715149868040,-500.0,0.00020273,2]
[326618179,1715149868049,-151.64038195,0.00020273,2]
[326618180,1715149868058,-351.09506298,0.00020273,2]
[326618181,1715149868067,-380.28493626,0.00020273,2]
[326618182,1715149868077,-500.0,0.00020273,2]
[326618183,1715149868086,-500.0,0.00020273,2]
[326618184,1715149868095,-151.0,0.00020273,2]
[326618185,1715149868104,-1133.31,0.00020273,2]
[326618186,1715149868113,-489.40369359,0.00020273,2]
[326618187,1715149868121,-500.0,0.00020273,2]
[326618188,1715149868133,-500.0,0.00020273,2]
[326618189,1715149868142,-500.0,0.00020273,2]
[326618190,1715149868152,-500.0,0.00020273,2]
[326618191,1715149868161,-500.0,0.00020273,2]
[326618192,1715149868170,-500.0,0.00020273,2]
[326618193,1715149868180,-500.0,0.00020273,2]
[326618194,1715149868189,-500.0,0.00020273,2]
[326618195,1715149868199,-500.0,0.00020273,2]
[326618196,1715149868208,-500.0,0.00020273,2]
[326618197,1715149868221,-500.0,0.00020273,2]
[326618198,1715149868231,-500.0,0.00020273,2]
[326618199,1715149868240,-500.0,0.00020273,2]
[326618200,1715149868250,-500.0,0.00020273,2]
[326618201,1715149868261,-500.0,0.00020273,2]
[326618202,1715149868270,-3026.24,0.00020273,2]
[326618203,1715149868279,-167.156329,0.00020273,2]
[326618204,1715149868289,-500.0,0.00020273,2]
[326618205,1715149868298,-167.156329,0.00020273,2]
[326618206,1715149868309,-500.0,0.00020273,2]
[326618207,1715149868318,-500.0,0.00020273,2]
[326618208,1715149868328,-500.0,0.00020273,2]
[326618209,1715149868337,-151.0,0.00020273,2]
[326618210,1715149868346,-151.0,0.00020273,2]
[326618211,1715149868425,-151.0,0.00020273,2]
[326618212,1715149868435,-500.0,0.00020273,2]
[326618213,1715149868444,-517.03,0.00020273,2]
[326618214,1715149868454,-500.0,0.00020273,2]
[326618215,1715149868463,-532.18,0.00020273,2]
[326618216,1715149868472,-500.0,0.00020273,2]
[326618217,1715149868481,-1991.71,0.00020273,2]
[326618218,1715149868493,-500.0,0.00020273,2]
[326618219,1715149868502,-1441.2,0.00020273,2]
[326618220,1715149868511,-500.0,0.00020273,2]
[326618221,1715149868520,-374.73898715,0.00020273,2]
[326618222,1715149868530,-1488.67,0.00020273,2]
[326618223,1715149868539,-500.0,0.00020273,2]
[326618224,1715149868549,-507.46305602,0.00020273,2]
[326618225,1715149868559,-504.15294702,0.00020273,2]
[326618226,1715149868568,-475.80303297,0.00020273,2]
[326618227,1715149868578,-500.0,0.00020273,2]
[326618228,1715149868587,-500.0,0.00020273,2]
[326618229,1715149868596,-861.02,0.00020273,2]
[326618230,1715149868605,-500.0,0.00020273,2]
[326618231,1715149868614,-500.0,0.00020273,2]
[326618232,1715149868623,-500.0,0.00020273,2]
[326618233,1715149868636,-500.0,0.00020273,2]
[326618234,1715149868644,-158.45313793,0.00020273,2]
[326618235,1715149868653,-500.0,0.00020273,2]
[326618236,1715149868662,-500.0,0.00020273,2]
[326618237,1715149868671,-500.0,0.00020273,2]
[326618238,1715149868680,-500.0,0.00020273,2]
[326618239,1715149868689,-3534.18,0.00020273,2]
[326618240,1715149868698,-982.56,0.00020273,2]
[326618241,1715149868708,-500.0,0.00020273,2]
[326618242,1715149868718,-500.0,0.00020273,2]
[326618243,1715149868728,-582.52,0.00020273,2]
[326618244,1715149868737,-500.0,0.00020273,2]
[326618245,1715149868747,-500.0,0.00020273,2]
[326618246,1715149868756,-500.0,0.00020273,2]
[326618247,1715149868766,-500.0,0.00020273,2]
[326618248,1715149868776,-500.0,0.00020273,2]
[326618249,1715149868785,-500.0,0.00020273,2]
[326618250,1715149868795,-500.0,0.00020273,2]
[326618251,1715149868805,-500.0,0.00020273,2]
[326618252,1715149868816,-500.0,0.00020273,2]
[326618253,1715149868827,-500.0,0.00020273,2]
[326618254,1715149868836,-500.0,0.00020273,2]
[326618255,1715149868846,-500.0,0.00020273,2]
[326618256,1715149868855,-500.0,0.00020273,2]
[326618257,1715149868865,-500.0,0.00020273,2]
[326618258,1715149868874,-500.0,0.00020273,2]
[326618259,1715149868885,-500.0,0.00020273,2]
[326618260,1715149868895,-500.0,0.00020273,2]
[326618261,1715149868905,-500.0,0.00020273,2]
[326618262,1715149868914,-500.0,0.00020273,2]
[326618263,1715149868924,-500.0,0.00020273,2]
[326618264,1715149868933,-500.0,0.00020273,2]
[326618265,1715149868953,-500.0,0.00020273,2]
[326618266,1715149868968,-500.0,0.00020273,2]
[326618267,1715149868986,-415.81597968,0.00020273,2]
[326618268,1715149869006,-913.04,0.00020273,2]
[326618269,1715149869024,-500.0,0.00020273,2]
[326618270,1715149869042,-500.0,0.00020273,2]
[326618271,1715149869058,-500.0,0.00020273,2]
[326618272,1715149869072,-647.89,0.00020273,2]
[326618273,1715149869093,-500.0,0.00020273,2]
[326618274,1715149869113,-508.82701772,0.00020273,2]
[326618275,1715149869126,-500.0,0.00020273,2]
[326618276,1715149869147,-562.81,0.00020273,2]
[326618277,1715149869162,-15777.08,0.00020273,2]
[326618278,1715149869180,-500.0,0.00020273,2]
[326618279,1715149869193,-500.0,0.00020273,2]
[326618280,1715149869209,-500.0,0.00020273,2]
[326618281,1715149869224,-263.1501015,0.00020273,2]
[326618282,1715149869239,-512.6,0.00020273,2]
[326618283,1715149869254,-500.0,0.00020273,2]
[326618284,1715149869269,-500.0,0.00020273,2]
[326618285,1715149869284,-504.86,0.00020273,2]
[326618286,1715149869299,-500.0,0.00020273,2]
[326618287,1715149869316,-500.0,0.00020273,2]
[326618288,1715149869331,-2690.64,0.00020273,2]
[326618289,1715149869345,-500.0,0.00020273,2]
[326618290,1715149869361,-500.0,0.00020273,2]
[326618291,1715149869375,-500.0,0.00020273,2]
[326618292,1715149869392,-500.0,0.00020273,2]
[326618293,1715149869407,-500.0,0.00020273,2]
[326618294,1715149869422,-500.0,0.00020273,2]
[326618295,1715149869437,-1360.34,0.00020273,2]
[326618296,1715149869451,-500.0,0.00020273,2]
[326618297,1715149869467,-500.0,0.00020273,2]
[326618298,1715149869481,-500.0,0.00020273,2]
[326618299,1715149869496,-500.0,0.00020273,2]
[326618300,1715149869512,-545.75,0.00020273,2]
[326618301,1715149869527,-500.0,0.00020273,2]
[326618302,1715149869542,-402.26585554,0.00020273,2]
[326618303,1715149869558,-514.8305363,0.00020273,2]
[326618304,1715149869573,-500.0,0.00020273,2]
[326618305,1715149869590,-500.0,0.00020273,2]
[326618306,1715149869605,-500.0,0.00020273,2]
[326618307,1715149869620,-500.0,0.00020273,2]
[326618308,1715149869638,-500.0,0.00020273,2]
[326618309,1715149869654,-500.0,0.00020273,2]
[326618310,1715149869669,-500.0,0.00020273,2]
[326618311,1715149869684,-1040.61,0.00020431,2]
[326618312,1715149869700,-304.74,0.00020431,2]
[326618313,1715149869715,-355.99,0.00020431,2]
[326618314,1715149869730,-305.41,0.00020431,2]
[326618315,1715149869745,-853.59,0.00020431,2]
[326618316,1715149869760,-299.48,0.00020431,2]
[326618317,1715149869775,-150.47,0.00020431,2]
[326618318,1715149869790,-150.0,0.00020431,2]
[326618319,1715149869907,-162.97,0.00020431,2]
[326618320,1715149869919,-150.0,0.00020431,2]
[326618321,1715149869928,-150.0,0.00020431,2]
[326618322,1715149869938,-1045.66,0.00020431,2]
[326618323,1715149869947,-150.0,0.00020431,2]
[326618324,1715149869957,-839.52,0.00020431,2]
[326618325,1715149869966,-326.18,0.00020431,2]
[326618326,1715149869976,-150.0,0.00020431,2]
[326618327,1715149869985,-150.0,0.00020431,2]
[326618328,1715149869995,-300.0,0.00020431,2]
[326618329,1715149870004,-388.17,0.00020431,2]
[326618330,1715149870015,-300.0,0.00020431,2]
[326618331,1715149870024,-150.0,0.00020431,2]
[326618332,1715149870034,-150.0,0.00020431,2]
[326618333,1715149870043,-420.02,0.00020431,2]
[326618334,1715149870052,-287.16,0.00020431,2]
[326618335,1715149870062,-150.0,0.00020431,2]
[326618336,1715149870071,-420.02,0.00020431,2]
[326618337,1715149870081,-163.18,0.00020431,2]
[326618338,1715149870090,-522.83,0.00020431,2]
[326618339,1715149870100,-150.0,0.00020431,2]
[326618340,1715149870110,-523.13,0.00020431,2]
[326618341,1715149870119,-150.0,0.00020431,2]
[326618342,1715149870131,-311.18,0.00020431,2]
[326618343,1715149870141,-150.0,0.00020431,2]
[326618344,1715149870150,-150.0,0.00020431,2]
[326618345,1715149870159,-523.13,0.00020431,2]
[326618346,1715149870168,-163.18,0.00020431,2]
[326618347,1715149870177,-523.13,0.00020431,2]
[326618348,1715149870187,-150.0,0.00020431,2]
[326618349,1715149870196,-150.0,0.00020431,2]
[326618350,1715149870205,-150.0,0.00020431,2]
[326618351,1715149870214,-328.64,0.00020431,2]
[326618352,1715149870227,-523.13,0.00020431,2]
[326618353,1715149870237,-150.0,0.00020431,2]
[326618354,1715149870247,-163.18,0.00020431,2]
[326618355,1715149870256,-150.0,0.00020431,2]
[326618356,1715149870267,-150.0,0.00020431,2]
[326618357,1715149870276,-304.6,0.00020431,2]
[326618358,1715149870286,-163.18,0.00020431,2]
[326618359,1715149870296,-523.13,0.00020431,2]
[326618360,1715149870307,-158.72050771,0.00020459,2]
[326618361,1715149870317,-150.0,0.000205,2]
[326618362,1715149870327,-500.0,0.00020547,2]
[326618363,1715149870336,-500.0,0.00020547,2]
[326618364,1715149870346,-500.0,0.00020547,2]
[326618365,1715149870355,-500.0,0.00020547,2]
[326618366,1715149870364,-614.95374858,0.00020547,2]
[326618367,1715149870374,-500.0,0.00020547,2]
[326618368,1715149870386,-156.08140481,0.00020547,2]
[326618369,1715149870396,-392.57422419,0.00020547,2]
[326618370,1715149870406,-500.0,0.00020547,2]
[326618371,1715149870415,-500.0,0.00020547,2]
[326618372,1715149870425,-500.0,0.00020547,2]
[326618373,1715149870435,-500.0,0.00020547,2]
[326618374,1715149870444,-547.16,0.00020547,2]
[326618375,1715149870455,-500.0,0.00020547,2]
[326618376,1715149870465,-608.20750555,0.00020547,2]
[326618377,1715149870475,-500.0,0.00020547,2]
[326618378,1715149870484,-500.0,0.00020547,2]
[326618379,1715149870497,-500.0,0.00020547,2]
[326618380,1715149870507,-500.0,0.00020547,2]
[326618381,1715149870517,-541.49662022,0.00020547,2]
[326618382,1715149870527,-500.0,0.00020547,2]
[326618383,1715149870538,-324.23602526,0.00020547,2]
[326618384,1715149870549,-586.79,0.00020547,2]
[326618385,1715149870560,-500.0,0.00020547,2]
[326618386,1715149870570,-500.0,0.00020547,2]
[326618387,1715149870580,-500.0,0.00020547,2]
[326618388,1715149870590,-150.0,0.00020547,2]
[326618389,1715149870600,-614.6915729,0.00020547,2]
[326618390,1715149870609,-515.38596158,0.00020547,2]
[326618391,1715149870619,-500.0,0.00020547,2]
[326618392,1715149870629,-498.72052578,0.00020547,2]
[326618393,1715149870641,-1133.31,0.00020547,2]
[326618394,1715149870651,-186.76247533,0.00020547,2]
[326618395,1715149870660,-340.97067384,0.00020547,2]
[326618396,1715149870669,-500.0,0.00020547,2]
[326618397,1715149870679,-500.0,0.00020547,2]
[326618398,1715149870689,-500.0,0.00020547,2]
[326618399,1715149870699,-500.0,0.00020547,2]
[326618400,1715149870709,-500.0,0.00020547,2]
[326618401,1715149870718,-500.0,0.00020547,2]
[326618402,1715149870728,-500.0,0.00020547,2]
[326618403,1715149870737,-500.0,0.00020547,2]
[326618404,1715149870747,-500.0,0.00020547,2]
[326618405,1715149870756,-500.0,0.00020547,2]
[326618406,1715149870767,-500.0,0.00020547,2]
[326618407,1715149870776,-500.0,0.00020547,2]
[326618408,1715149870786,-3026.24,0.00020547,2]
[326618409,1715149870796,-500.0,0.00020547,2]
[326618410,1715149870805,-500.0,0.00020547,2]
[326618411,1715149870816,-500.0,0.00020547,2]
[326618412,1715149870825,-500.0,0.00020547,2]
[326618413,1715149870835,-500.0,0.00020547,2]
[326618414,1715149870844,-517.03,0.00020547,2]
[326618415,1715149870854,-634.44869226,0.00020547,2]
[326618416,1715149870864,-532.18,0.00020547,2]
[326618417,1715149870873,-500.0,0.00020547,2]
[326618418,1715149870886,-1991.71,0.00020547,2]
[326618419,1715149870895,-500.0,0.00020547,2]
[326618420,1715149870904,-1441.2,0.00020547,2]
[326618421,1715149870913,-500.0,0.00020547,2]
[326618422,1715149870923,-1488.67,0.00020547,2]
[326618423,1715149870933,-500.0,0.00020547,2]
[326618424,1715149870943,-500.0,0.00020547,2]
[326618425,1715149870953,-500.0,0.00020547,2]
[326618426,1715149870963,-861.02,0.00020547,2]
[326618427,1715149870973,-500.0,0.00020547,2]
[326618428,1715149870982,-500.0,0.00020547,2]
[326618429,1715149870993,-500.0,0.00020547,2]
[326618430,1715149871003,-500.0,0.00020547,2]
[326618431,1715149871012,-500.0,0.00020547,2]
[326618432,1715149871022,-500.0,0.00020547,2]
[326618433,1715149871031,-500.0,0.00020547,2]
[326618434,1715149871041,-500.0,0.00020547,2]
[326618435,1715149871053,-3534.18,0.00020547,2]
[326618436,1715149871063,-982.56,0.00020547,2]
[326618437,1715149871073,-500.0,0.00020547,2]
[326618438,1715149871083,-500.0,0.00020547,2]
[326618439,1715149871094,-582.52,0.00020547,2]
[326618440,1715149871104,-500.0,0.00020547,2]
[326618441,1715149871114,-500.0,0.00020547,2]
[326618442,1715149871125,-500.0,0.00020547,2]
[326618443,1715149871141,-500.0,0.00020547,2]
[326618444,1715149871151,-500.0,0.00020547,2]
[326618445,1715149871160,-500.0,0.00020547,2]
[326618446,1715149871170,-500.0,0.00020547,2]
[326618447,1715149871180,-500.0,0.00020547,2]
[326618448,1715149871191,-500.0,0.00020547,2]
[326618449,1715149871273,-500.0,0.00020547,2]
[326618450,1715149871285,-500.0,0.00020547,2]
[326618451,1715149871295,-500.0,0.00020547,2]
[326618452,1715149871306,-314.7824187,0.00020547,2]
[326618453,1715149871317,-500.0,0.00020547,2]
[326618454,1715149871327,-500.0,0.00020547,2]
[326618455,1715149871337,-510.11161197,0.00020547,2]
[326618456,1715149871347,-500.0,0.00020547,2]
[326618457,1715149871357,-500.0,0.00020547,2]
[326618458,1715149871368,-500.0,0.00020547,2]
[326618459,1715149871378,-500.0,0.00020547,2]
[326618460,1715149871393,-500.0,0.00020547,2]
[326618461,1715149871403,-500.0,0.00020547,2]
[326618462,1715149871412,-500.0,0.00020547,2]
[326618463,1715149871422,-913.04,0.00020547,2]
[326618464,1715149871431,-500.0,0.00020547,2]
[326618465,1715149871441,-534.2850549,0.00020547,2]
[326618466,1715149871451,-500.0,0.00020547,2]
[326618467,1715149871461,-647.89,0.00020547,2]
[326618468,1715149871472,-500.0,0.00020547,2]
[326618469,1715149871482,-500.0,0.00020547,2]
[326618470,1715149871494,-562.81,0.00020547,2]
[326618471,1715149871505,-15777.08,0.00020547,2]
[326618472,1715149871516,-203.29458256,0.00020547,2]
[326618473,1715149871526,-490.11167575,0.00020547,2]
[326618474,1715149871536,-500.0,0.00020547,2]
[326618475,1715149871547,-512.6,0.00020547,2]
[326618476,1715149871557,-500.0,0.00020547,2]
[326618477,1715149871566,-500.0,0.00020547,2]
[326618478,1715149871576,-504.86,0.00020547,2]
[326618479,1715149871586,-500.0,0.00020547,2]
[326618480,1715149871597,-2690.64,0.00020547,2]
[326618481,1715149871606,-500.0,0.00020547,2]
[326618482,1715149871616,-500.0,0.00020547,2]
[326618483,1715149871626,-500.0,0.00020547,2]
[326618484,1715149871642,-500.0,0.00020547,2]
[326618485,1715149871652,-500.0,0.00020547,2]
[326618486,1715149871662,-500.0,0.00020547,2]
[326618487,1715149871672,-1360.34,0.00020547,2]
[326618488,1715149871682,-500.0,0.00020547,2]
[326618489,1715149871692,-500.0,0.00020547,2]
[326618490,1715149871703,-500.0,0.00020547,2]
[326618491,1715149871713,-492.9779456,0.00020547,2]
[326618492,1715149871723,-545.75,0.00020547,2]
[326618493,1715149871733,-500.0,0.00020547,2]
[326618494,1715149871743,-500.0,0.00020547,2]
[326618495,1715149871756,-497.38806919,0.00020547,2]
[326618496,1715149871765,-155.6130374,0.00020547,2]
[326618497,1715149871775,-500.0,0.00020547,2]
[326618498,1715149871785,-500.0,0.00020547,2]
[326618499,1715149871794,-500.0,0.00020547,2]
[326618500,1715149871804,-153.8305885,0.00020571,2]
[326618501,1715149871813,-154.31506026,0.00020599,2]
[326618502,1715149871823,-150.0,0.00020623,2]
[326618503,1715149871832,-150.0,0.00020623,2]
[326618504,1715149871842,-150.0,0.00020623,2]
[326618505,1715149871851,-150.0,0.00020623,2]
[326618506,1715149871861,-150.0,0.00020623,2]
[326618507,1715149871871,-150.0,0.00020623,2]
[326618508,1715149871883,-150.0,0.00020623,2]
[326618509,1715149871892,-150.0,0.00020623,2]
[326618510,1715149871902,-150.0,0.00020623,2]
[326618511,1715149871911,-150.0,0.00020623,2]
[326618512,1715149871920,-150.0,0.00020623,2]
[326618513,1715149871929,-150.0,0.00020623,2]
[326618514,1715149871939,-150.0,0.00020623,2]
[326618515,1715149871950,-150.0,0.00020623,2]
[326618516,1715149871959,-150.0,0.00020623,2]
[326618517,1715149871969,-150.0,0.00020623,2]
[326618518,1715149871978,-611.0,0.00020623,2]
[326618519,1715149871988,-438.0,0.00020623,2]
[326618520,1715149871997,-421.0,0.00020623,2]
[326618521,1715149872007,-809.0,0.00020623,2]
[326618522,1715149872016,-1478.0,0.00020623,2]
[326618523,1715149872026,-2431.0,0.00020623,2]
[326618524,1715149872036,-150.0,0.00020623,2]
[326618525,1715149872046,-1139.0,0.00020623,2]
[326618526,1715149872056,-215.0,0.00020623,2]
[326618527,1715149872066,-444.0,0.00020623,2]
[326618528,1715149872076,-1645.0,0.00020623,2]
[326618529,1715149872086,-3154.0,0.00020623,2]
[326618530,1715149872095,-5745.0,0.00020623,2]
[326618531,1715149872106,-2301.0,0.00020623,2]
[326618532,1715149872116,-1397.0,0.00020623,2]
[326618533,1715149872125,-37800.0,0.00020623,2]
[326618534,1715149872138,-2295.0,0.00020623,2]
[326618535,1715149872147,-288.0,0.00020623,2]
[326618536,1715149872158,-972.0,0.00020623,2]
[326618537,1715149872167,-167.156329,0.00020645,2]
[326618538,1715149872177,-167.156329,0.00020645,2]
[326618539,1715149872186,-151.0,0.00020645,2]
[326618540,1715149872196,-151.0,0.00020645,2]
[326618541,1715149872206,-374.4780854,0.00020821,2]
[326618542,1715149872216,-500.0,0.00020821,2]
[326618543,1715149872227,-151.0,0.00020821,2]
[326618544,1715149872237,-500.0,0.00020821,2]
[326618545,1715149872246,-447.63923597,0.00020821,2]
[326618546,1715149872256,-500.0,0.00020821,2]
[326618547,1715149872266,-500.0,0.00020821,2]
[326618548,1715149872275,-151.0,0.00020821,2]
[326618549,1715149872284,-500.0,0.00020821,2]
[326618550,1715149872294,-156.59,0.00020821,2]
[326618551,1715149872305,-500.0,0.00020821,2]
[326618552,1715149872314,-352.38,0.00020821,2]
[326618553,1715149872324,-151.0,0.00020821,2]
[326618554,1715149872333,-500.0,0.00020821,2]
[326618555,1715149872343,-311.99739394,0.00020821,2]
[326618556,1715149872352,-291.731569,0.00020821,2]
[326618557,1715149872362,-485.8981117,0.00020821,2]
[326618558,1715149872371,-291.731569,0.00020821,2]
[326618559,1715149872382,-500.0,0.00020821,2]
[326618560,1715149872391,-375.64525059,0.00020821,2]
[326618561,1715149872401,-151.0,0.00020821,2]
[326618562,1715149872410,-252.951272,0.00020821,2]
[326618563,1715149872420,-586.79,0.00020821,2]
[326618564,1715149872429,-500.0,0.00020821,2]
[326618565,1715149872439,-500.0,0.00020821,2]
[326618566,1715149872448,-500.0,0.00020821,2]
[326618567,1715149872458,-150.0,0.00020821,2]
[326618568,1715149872467,-500.0,0.00020821,2]
[326618569,1715149872549,-151.0,0.00020821,2]
[326618570,1715149872559,-1133.31,0.00020821,2]
[326618571,1715149872568,-374.84667708,0.00020821,2]
[326618572,1715149872578,-500.0,0.00020821,2]
[326618573,1715149872587,-500.0,0.00020821,2]
[326618574,1715149872597,-500.0,0.00020821,2]
[326618575,1715149872606,-500.0,0.00020821,2]
[326618576,1715149872615,-500.0,0.00020821,2]
[326618577,1715149872625,-500.0,0.00020821,2]
[326618578,1715149872635,-497.61543447,0.00020821,2]
[326618579,1715149872644,-500.0,0.00020821,2]
[326618580,1715149872653,-500.0,0.00020821,2]
[326618581,1715149872663,-500.0,0.00020821,2]
[326618582,1715149872672,-500.0,0.00020821,2]
[326618583,1715149872682,-3026.24,0.00020821,2]
[326618584,1715149872691,-500.0,0.00020821,2]
[326618585,1715149872700,-500.0,0.00020821,2]
[326618586,1715149872710,-500.0,0.00020821,2]
[326618587,1715149872720,-483.50574843,0.00020821,2]
[326618588,1715149872729,-151.0,0.00020821,2]
[326618589,1715149872739,-500.0,0.00020821,2]
[326618590,1715149872748,-517.03,0.00020821,2]
[326618591,1715149872758,-532.18,0.00020821,2]
[326618592,1715149872767,-500.0,0.00020821,2]
[326618593,1715149872777,-1991.71,0.00020821,2]
[326618594,1715149872786,-500.0,0.00020821,2]
[326618595,1715149872796,-1441.2,0.00020821,2]
[326618596,1715149872806,-500.0,0.00020821,2]
[326618597,1715149872815,-1488.67,0.00020821,2]
[326618598,1715149872825,-500.0,0.00020821,2]
[326618599,1715149872835,-500.0,0.00020821,2]
[326618600,1715149872845,-451.45926033,0.00020821,2]
[326618601,1715149872854,-861.02,0.00020821,2]
[326618602,1715149872864,-500.0,0.00020821,2]
[326618603,1715149872874,-500.0,0.00020821,2]
[326618604,1715149872886,-500.0,0.00020821,2]